[Event "Early-Titled-Tuesday-Blitz-March-19-2024"]
[Site "Chess.com"]
[Date "2024.03.19"]
[Round "3"]
[White "Sina_Movahed"]
[Black "Agibileg"]
[Result "1/2-1/2"]
[WhiteElo "3085"]
[BlackElo "2828"]
[TimeControl "180+1"]
[EndTime "8:32:21 PDT"]
[Termination "Game drawn - insufficient material"]

1. e4 {[%clk 0:03:00.9]} 1... e5 {[%clk 0:02:59.1]} 2. Nf3 {[%clk 0:03:00.9]}
2... Nc6 {[%clk 0:02:59.3]} 3. Bb5 {[%clk 0:03:01.5]} 3... a6 {[%clk 0:02:59.1]}
4. Ba4 {[%clk 0:03:01.5]} 4... Nf6 {[%clk 0:02:59.2]} 5. O-O {[%clk 0:03:02.2]}
5... d6 {[%clk 0:02:59.2]} 6. Re1 {[%clk 0:02:54]} 6... Bd7 {[%clk 0:02:58.9]}
7. c3 {[%clk 0:02:53.7]} 7... g6 {[%clk 0:02:58.2]} 8. d4 {[%clk 0:02:53.9]}
8... Bg7 {[%clk 0:02:58.6]} 9. h3 {[%clk 0:02:54.5]} 9... O-O {[%clk 0:02:58.2]}
10. Nbd2 {[%clk 0:02:51.6]} 10... exd4 {[%clk 0:02:57.6]} 11. cxd4 {[%clk
0:02:51.7]} 11... Nb4 {[%clk 0:02:58.1]} 12. Bxd7 {[%clk 0:02:48.4]} 12... Nxd7
{[%clk 0:02:39.4]} 13. a3 {[%clk 0:02:33.8]} 13... Nd3 {[%clk 0:02:37.2]} 14.
Re3 {[%clk 0:02:34.3]} 14... Nxc1 {[%clk 0:02:34.8]} 15. Rxc1 {[%clk 0:02:35.2]}
15... c5 {[%clk 0:02:33.9]} 16. Nc4 {[%clk 0:02:34.3]} 16... cxd4 {[%clk
0:02:33]} 17. Re1 {[%clk 0:02:07.7]} 17... Qf6 {[%clk 0:02:13.3]} 18. b4 {[%clk
0:01:53.9]} 18... Rfc8 {[%clk 0:02:02.6]} 19. Qb3 {[%clk 0:01:27.2]} 19... b5
{[%clk 0:01:52.7]} 20. Ncd2 {[%clk 0:01:11.8]} 20... Rc3 {[%clk 0:01:53]} 21.
Qd5 {[%clk 0:01:12.4]} 21... Rac8 {[%clk 0:01:52.8]} 22. Rcd1 {[%clk 0:01:12.1]}
22... Nb6 {[%clk 0:01:47.7]} 23. Qb7 {[%clk 0:01:11.5]} 23... Na4 {[%clk
0:01:20.3]} 24. Qxa6 {[%clk 0:01:03.5]} 24... Nb2 {[%clk 0:01:18.4]} 25. Rb1
{[%clk 0:01:03]} 25... Nd3 {[%clk 0:01:18.3]} 26. Qxb5 {[%clk 0:00:57.3]} 26...
Nxe1 {[%clk 0:01:17.3]} 27. Rxe1 {[%clk 0:00:56.6]} 27... Rxa3 {[%clk
0:01:15.3]} 28. Qb7 {[%clk 0:00:55.2]} 28... Qd8 {[%clk 0:01:12.7]} 29. Qd5
{[%clk 0:00:52.6]} 29... h6 {[%clk 0:00:52.5]} 30. Nc4 {[%clk 0:00:46.8]} 30...
Ra7 {[%clk 0:00:42.2]} 31. Nxd6 {[%clk 0:00:30.3]} 31... Rd7 {[%clk 0:00:21.7]}
32. e5 {[%clk 0:00:30.2]} 32... Bf8 {[%clk 0:00:21.4]} 33. Qxd4 {[%clk
0:00:29.6]} 33... Bxd6 {[%clk 0:00:21.4]} 34. exd6 {[%clk 0:00:30.5]} 34... Rxd6
{[%clk 0:00:21.5]} 35. Qf4 {[%clk 0:00:31.2]} 35... Rd1 {[%clk 0:00:20.4]} 36.
Rxd1 {[%clk 0:00:30.5]} 36... Qxd1+ {[%clk 0:00:21.3]} 37. Kh2 {[%clk
0:00:31.3]} 37... Qc2 {[%clk 0:00:13.5]} 38. Ne5 {[%clk 0:00:19.5]} 38... Qc7
{[%clk 0:00:13.4]} 39. g3 {[%clk 0:00:18.2]} 39... Re8 {[%clk 0:00:13.2]} 40.
Nxg6 {[%clk 0:00:18.4]} 40... Qxf4 {[%clk 0:00:13.1]} 41. Nxf4 {[%clk
0:00:19.3]} 41... Rb8 {[%clk 0:00:12.4]} 42. Nd3 {[%clk 0:00:19.5]} 42... Rd8
{[%clk 0:00:08.1]} 43. Nc5 {[%clk 0:00:10.6]} 43... Rd2 {[%clk 0:00:07.6]} 44.
Kg2 {[%clk 0:00:10.4]} 44... Rb2 {[%clk 0:00:07.9]} 45. Na6 {[%clk 0:00:09.6]}
45... Ra2 {[%clk 0:00:05.3]} 46. b5 {[%clk 0:00:08.5]} 46... Ra5 {[%clk
0:00:05.5]} 47. Nc7 {[%clk 0:00:07.7]} 47... Ra7 {[%clk 0:00:06]} 48. b6 {[%clk
0:00:07.7]} 48... Rb7 {[%clk 0:00:04.2]} 49. Nd5 {[%clk 0:00:08.3]} 49... Kf8
{[%clk 0:00:02.6]} 50. Kf3 {[%clk 0:00:08.9]} 50... Ke8 {[%clk 0:00:02.8]} 51.
Ke4 {[%clk 0:00:08.8]} 51... Kd7 {[%clk 0:00:03.5]} 52. Ke5 {[%clk 0:00:09.5]}
52... Kc6 {[%clk 0:00:03.7]} 53. f4 {[%clk 0:00:10.2]} 53... Rd7 {[%clk
0:00:03.6]} 54. Nf6 {[%clk 0:00:10.2]} 54... Re7+ {[%clk 0:00:04.1]} 55. Kf5
{[%clk 0:00:10.3]} 55... Re3 {[%clk 0:00:04]} 56. Ne4 {[%clk 0:00:06.5]} 56...
Kxb6 {[%clk 0:00:04.2]} 57. h4 {[%clk 0:00:07.1]} 57... Kc6 {[%clk 0:00:04.6]}
58. g4 {[%clk 0:00:07.3]} 58... Kd7 {[%clk 0:00:04.4]} 59. Nf6+ {[%clk
0:00:07.7]} 59... Kd8 {[%clk 0:00:03.4]} 60. g5 {[%clk 0:00:07.8]} 60... hxg5
{[%clk 0:00:03.5]} 61. fxg5 {[%clk 0:00:08.5]} 61... Rh3 {[%clk 0:00:04]} 62. h5
{[%clk 0:00:08.9]} 62... Ke7 {[%clk 0:00:04.6]} 63. h6 {[%clk 0:00:09.4]} 63...
Kf8 {[%clk 0:00:05.1]} 64. Kg4 {[%clk 0:00:09.7]} 64... Rh1 {[%clk 0:00:05.1]}
65. Kf5 {[%clk 0:00:10.2]} 65... Rf1+ {[%clk 0:00:04.6]} 66. Ke5 {[%clk
0:00:10.7]} 66... Re1+ {[%clk 0:00:04.9]} 67. Kf4 {[%clk 0:00:11.3]} 67... Rf1+
{[%clk 0:00:05]} 68. Kg4 {[%clk 0:00:11.7]} 68... Rg1+ {[%clk 0:00:05.3]} 69.
Kf5 {[%clk 0:00:12]} 69... Rf1+ {[%clk 0:00:05.6]} 70. Ke5 {[%clk 0:00:12.2]}
70... Re1+ {[%clk 0:00:05.6]} 71. Kd4 {[%clk 0:00:11.4]} 71... Rg1 {[%clk
0:00:04.5]} 72. Ke4 {[%clk 0:00:12]} 72... Re1+ {[%clk 0:00:03.3]} 73. Kf3
{[%clk 0:00:12.3]} 73... Rf1+ {[%clk 0:00:03.6]} 74. Kg2 {[%clk 0:00:12.6]}
74... Rf4 {[%clk 0:00:03.9]} 75. Kh3 {[%clk 0:00:12.3]} 75... Rf1 {[%clk
0:00:03.7]} 76. Kg3 {[%clk 0:00:12.9]} 76... Rh1 {[%clk 0:00:03.8]} 77. Kf2
{[%clk 0:00:13.1]} 77... Rh4 {[%clk 0:00:03.6]} 78. Kg3 {[%clk 0:00:13.3]} 78...
Rh1 {[%clk 0:00:03.7]} 79. Kf3 {[%clk 0:00:13.3]} 79... Rh3+ {[%clk 0:00:03.8]}
80. Kg4 {[%clk 0:00:13.1]} 80... Rh1 {[%clk 0:00:03.8]} 81. Nh5 {[%clk
0:00:12.8]} 81... Rg1+ {[%clk 0:00:03.8]} 82. Kf5 {[%clk 0:00:12.9]} 82... Rf1+
{[%clk 0:00:04]} 83. Ke5 {[%clk 0:00:12.8]} 83... Re1+ {[%clk 0:00:03.6]} 84.
Kf4 {[%clk 0:00:13.1]} 84... Rf1+ {[%clk 0:00:04]} 85. Kg4 {[%clk 0:00:13.5]}
85... Rg1+ {[%clk 0:00:04.3]} 86. Kf5 {[%clk 0:00:12.8]} 86... Kg8 {[%clk
0:00:04.6]} 87. Nf6+ {[%clk 0:00:12.3]} 87... Kh8 {[%clk 0:00:05]} 88. Ne4
{[%clk 0:00:13]} 88... Rf1+ {[%clk 0:00:05]} 89. Ke5 {[%clk 0:00:13.6]} 89...
Re1 {[%clk 0:00:04.4]} 90. Kf5 {[%clk 0:00:12.8]} 90... Rf1+ {[%clk 0:00:04.7]}
91. Kg4 {[%clk 0:00:13]} 91... Kh7 {[%clk 0:00:04.7]} 92. Kh5 {[%clk 0:00:13.2]}
92... Rh1+ {[%clk 0:00:04.2]} 93. Kg4 {[%clk 0:00:13.6]} 93... Kg6 {[%clk
0:00:04.1]} 94. Kf4 {[%clk 0:00:12.1]} 94... Rf1+ {[%clk 0:00:04.2]} 95. Ke5
{[%clk 0:00:12.5]} 95... Rf5+ {[%clk 0:00:03.9]} 96. Kd4 {[%clk 0:00:12.8]}
96... Rf1 {[%clk 0:00:03.8]} 97. Ke5 {[%clk 0:00:12.5]} 97... Re1 {[%clk
0:00:04.2]} 98. Kf4 {[%clk 0:00:12.6]} 98... Rf1+ {[%clk 0:00:04.3]} 99. Kg4
{[%clk 0:00:13.2]} 99... Rg1+ {[%clk 0:00:04.4]} 100. Kf4 {[%clk 0:00:13.6]}
100... Rh1 {[%clk 0:00:04.9]} 101. Kg4 {[%clk 0:00:12.1]} 101... Rh5 {[%clk
0:00:05.1]} 102. Kf4 {[%clk 0:00:12]} 102... Rh4+ {[%clk 0:00:05.2]} 103. Kf3
{[%clk 0:00:12.5]} 103... Rxh6 {[%clk 0:00:04.2]} 104. gxh6 {[%clk 0:00:12.5]}
104... Kxh6 {[%clk 0:00:05.1]} 105. Kf4 {[%clk 0:00:13.2]} 105... Kg6 {[%clk
0:00:03.9]} 106. Nd6 {[%clk 0:00:11]} 106... f5 {[%clk 0:00:04.8]} 107. Nxf5
{[%clk 0:00:11.3]} 1/2-1/2

[Event "Early-Titled-Tuesday-Blitz-March-19-2024"]
[Site "Chess.com"]
[Date "2024.03.19"]
[Round "4"]
[White "geminithegreat"]
[Black "ahmedkandiliii"]
[Result "0-1"]
[WhiteElo "2221"]
[BlackElo "2495"]
[TimeControl "180+1"]
[EndTime "8:34:01 PDT"]
[Termination "ahmedkandiliii won by resignation"]

1. Nf3 {[%clk 0:03:00.9]} 1... Nf6 {[%clk 0:02:59.2]} 2. d4 {[%clk 0:02:56.8]}
2... g6 {[%clk 0:02:59.3]} 3. c4 {[%clk 0:02:56.9]} 3... Bg7 {[%clk 0:02:59.5]}
4. g3 {[%clk 0:02:57.5]} 4... O-O {[%clk 0:02:58.7]} 5. Bg2 {[%clk 0:02:58.2]}
5... c5 {[%clk 0:02:58.8]} 6. d5 {[%clk 0:02:58.3]} 6... d6 {[%clk 0:02:58.4]}
7. O-O {[%clk 0:02:57]} 7... e6 {[%clk 0:02:58.9]} 8. Nc3 {[%clk 0:02:57.5]}
8... exd5 {[%clk 0:02:58.4]} 9. cxd5 {[%clk 0:02:58.4]} 9... Nbd7 {[%clk
0:02:56.3]} 10. Bf4 {[%clk 0:02:52.4]} 10... Qe7 {[%clk 0:02:43.5]} 11. Ne4
{[%clk 0:02:34.8]} 11... Nxe4 {[%clk 0:02:40.2]} 0-1

[Event "Early-Titled-Tuesday-Blitz-March-19-2024"]
[Site "Chess.com"]
[Date "2024.03.19"]
[Round "4"]
[White "Carlos-Godoy"]
[Black "Akylbek2021"]
[Result "0-1"]
[WhiteElo "2079"]
[BlackElo "2322"]
[TimeControl "180+1"]
[EndTime "8:35:13 PDT"]
[Termination "Akylbek2021 won by resignation"]

1. e4 {[%clk 0:03:00.9]} 1... e6 {[%clk 0:02:59.9]} 2. d4 {[%clk 0:02:59.6]}
2... d5 {[%clk 0:03:00.4]} 3. Nc3 {[%clk 0:02:59.8]} 3... Bb4 {[%clk 0:03:00.3]}
4. Ne2 {[%clk 0:02:59.6]} 4... Ne7 {[%clk 0:02:56.7]} 5. a3 {[%clk 0:02:59.6]}
5... Ba5 {[%clk 0:02:55.7]} 6. Bg5 {[%clk 0:02:51]} 6... h6 {[%clk 0:02:54.9]}
7. Bh4 {[%clk 0:02:50.9]} 7... c6 {[%clk 0:02:49]} 8. g3 {[%clk 0:02:43.5]} 8...
g5 {[%clk 0:02:47.3]} 9. b4 {[%clk 0:02:34.4]} 9... Bc7 {[%clk 0:02:43.5]} 10.
Bg2 {[%clk 0:02:28.4]} 10... gxh4 {[%clk 0:02:43.2]} 11. gxh4 {[%clk 0:02:29.1]}
11... Ng6 {[%clk 0:02:42.4]} 12. h5 {[%clk 0:02:25.5]} 12... Nh4 {[%clk
0:02:42.2]} 13. Bh3 {[%clk 0:02:16.9]} 13... Nf3+ {[%clk 0:02:38.3]} 14. Kf1
{[%clk 0:02:16]} 14... Qh4 {[%clk 0:02:37.2]} 15. Kg2 {[%clk 0:02:10.9]} 15...
Ng5 {[%clk 0:02:10.4]} 16. Ng1 {[%clk 0:02:07.9]} 16... Rg8 {[%clk 0:02:07.1]}
0-1

[Event "Early-Titled-Tuesday-Blitz-March-19-2024"]
[Site "Chess.com"]
[Date "2024.03.19"]
[Round "4"]
[White "kenta1234"]
[Black "Pingah9"]
[Result "1-0"]
[WhiteElo "2817"]
[BlackElo "2585"]
[TimeControl "180+1"]
[EndTime "8:36:32 PDT"]
[Termination "kenta1234 won by resignation"]

1. Nf3 {[%clk 0:03:00.9]} 1... g6 {[%clk 0:02:58.6]} 2. c4 {[%clk 0:03:00.3]}
2... Bg7 {[%clk 0:02:58.9]} 3. g3 {[%clk 0:03:01.1]} 3... b6 {[%clk 0:02:55.4]}
4. Bg2 {[%clk 0:03:01.4]} 4... Bb7 {[%clk 0:02:55.8]} 5. O-O {[%clk 0:03:02.1]}
5... d6 {[%clk 0:02:55.5]} 6. Nc3 {[%clk 0:03:02.7]} 6... Nd7 {[%clk 0:02:55.7]}
7. d4 {[%clk 0:03:03.2]} 7... e6 {[%clk 0:02:55.9]} 8. e4 {[%clk 0:03:03.6]}
8... Ne7 {[%clk 0:02:55.7]} 9. Re1 {[%clk 0:03:03.6]} 9... O-O {[%clk
0:02:54.9]} 10. Qc2 {[%clk 0:03:02]} 10... a6 {[%clk 0:02:54.3]} 11. b3 {[%clk
0:02:57.2]} 11... h6 {[%clk 0:02:53.6]} 12. Bb2 {[%clk 0:02:57.5]} 12... e5
{[%clk 0:02:47.9]} 13. Rad1 {[%clk 0:02:56.8]} 13... Nc6 {[%clk 0:02:46.1]} 14.
dxe5 {[%clk 0:02:51.8]} 14... Ndxe5 {[%clk 0:02:38.9]} 15. Nxe5 {[%clk
0:02:50.2]} 15... Nxe5 {[%clk 0:02:32.8]} 16. f4 {[%clk 0:02:50.1]} 16... Nd7
{[%clk 0:02:26]} 17. Nd5 {[%clk 0:02:49.8]} 17... Bxd5 {[%clk 0:02:22]} 18. cxd5
{[%clk 0:02:45.9]} 18... Bxb2 {[%clk 0:02:19.3]} 19. Qxb2 {[%clk 0:02:46.8]}
19... a5 {[%clk 0:02:16]} 20. e5 {[%clk 0:02:47.1]} 20... Nc5 {[%clk 0:02:13.7]}
21. e6 {[%clk 0:02:38.5]} 21... Qe7 {[%clk 0:02:09.7]} 22. a3 {[%clk 0:02:31.1]}
22... Kh7 {[%clk 0:01:38.6]} 23. b4 {[%clk 0:02:27.6]} 23... axb4 {[%clk
0:01:36.1]} 24. axb4 {[%clk 0:02:28.5]} 24... Na4 {[%clk 0:01:33]} 25. Qc2
{[%clk 0:02:24.1]} 25... b5 {[%clk 0:01:29.5]} 26. f5 {[%clk 0:02:23.8]} 26...
Kg7 {[%clk 0:01:21.9]} 27. Rc1 {[%clk 0:02:16.6]} 27... Ra7 {[%clk 0:01:19.7]}
28. Qf2 {[%clk 0:02:13.8]} 28... g5 {[%clk 0:01:04.3]} 29. Qxa7 {[%clk
0:02:12.7]} 1-0

[Event "Early-Titled-Tuesday-Blitz-March-19-2024"]
[Site "Chess.com"]
[Date "2024.03.19"]
[Round "4"]
[White "MightyMike_009"]
[Black "LLariMarc"]
[Result "1-0"]
[WhiteElo "2723"]
[BlackElo "2412"]
[TimeControl "180+1"]
[EndTime "8:36:36 PDT"]
[Termination "MightyMike_009 won by resignation"]

1. d4 {[%clk 0:03:00.9]} 1... f5 {[%clk 0:02:56.6]} 2. g3 {[%clk 0:03:00]} 2...
Nf6 {[%clk 0:02:56.6]} 3. Bg2 {[%clk 0:02:57.8]} 3... g6 {[%clk 0:02:57.2]} 4.
Nf3 {[%clk 0:02:55.7]} 4... Bg7 {[%clk 0:02:57.5]} 5. O-O {[%clk 0:02:55.8]}
5... O-O {[%clk 0:02:56.9]} 6. c4 {[%clk 0:02:55]} 6... d6 {[%clk 0:02:56.8]} 7.
b3 {[%clk 0:02:53.2]} 7... a5 {[%clk 0:02:56.5]} 8. a3 {[%clk 0:02:47.5]} 8...
Nbd7 {[%clk 0:02:54.2]} 9. Bb2 {[%clk 0:02:47.4]} 9... e6 {[%clk 0:02:45.5]} 10.
Nc3 {[%clk 0:02:44.5]} 10... c6 {[%clk 0:02:42.8]} 11. Ng5 {[%clk 0:02:36]}
11... Re8 {[%clk 0:02:41]} 12. d5 {[%clk 0:02:32.7]} 12... Nf8 {[%clk
0:02:12.9]} 13. dxc6 {[%clk 0:02:28.5]} 13... Rb8 {[%clk 0:02:11.5]} 14. Nb5
{[%clk 0:02:18.1]} 14... bxc6 {[%clk 0:02:02.6]} 15. Nxd6 {[%clk 0:02:06.6]}
15... Re7 {[%clk 0:01:58.8]} 16. Be5 {[%clk 0:01:58.8]} 16... Rb6 {[%clk
0:01:51.5]} 17. c5 {[%clk 0:01:57.7]} 17... Ra6 {[%clk 0:01:50.4]} 18. Nxf5
{[%clk 0:01:53.1]} 18... Rd7 {[%clk 0:01:43.7]} 19. Nd6 {[%clk 0:01:52.3]} 19...
h6 {[%clk 0:01:37.3]} 20. Nf3 {[%clk 0:01:48.9]} 20... Nd5 {[%clk 0:01:36.9]}
21. Bxg7 {[%clk 0:01:48.3]} 21... Kxg7 {[%clk 0:01:37.4]} 22. e4 {[%clk
0:01:46]} 22... Nf6 {[%clk 0:01:32]} 23. Ne5 {[%clk 0:01:44.5]} 23... Raa7
{[%clk 0:01:26.5]} 24. Nxc6 {[%clk 0:01:44]} 24... Qc7 {[%clk 0:01:25.7]} 25. e5
{[%clk 0:01:41.6]} 1-0

[Event "Early-Titled-Tuesday-Blitz-March-19-2024"]
[Site "Chess.com"]
[Date "2024.03.19"]
[Round "4"]
[White "Willhaven3"]
[Black "cristiano78"]
[Result "1-0"]
[WhiteElo "2531"]
[BlackElo "2228"]
[TimeControl "180+1"]
[EndTime "8:36:39 PDT"]
[Termination "Willhaven3 won by resignation"]

1. e4 {[%clk 0:02:43.4]} 1... c5 {[%clk 0:02:59.3]} 2. Nc3 {[%clk 0:02:42.2]}
2... d6 {[%clk 0:02:59.4]} 3. f4 {[%clk 0:02:42.6]} 3... a6 {[%clk 0:02:59]} 4.
Nf3 {[%clk 0:02:43]} 4... Bg4 {[%clk 0:02:58.9]} 5. a4 {[%clk 0:02:42.1]} 5...
f6 {[%clk 0:02:58.4]} 6. Bc4 {[%clk 0:02:38.9]} 6... e6 {[%clk 0:02:57.8]} 7.
O-O {[%clk 0:02:38.1]} 7... Nc6 {[%clk 0:02:57.7]} 8. h3 {[%clk 0:02:37.7]} 8...
Bxf3 {[%clk 0:02:57.8]} 9. Qxf3 {[%clk 0:02:38.6]} 9... Nd4 {[%clk 0:02:57.6]}
10. Qd1 {[%clk 0:02:39]} 10... Ne7 {[%clk 0:02:54.7]} 11. d3 {[%clk 0:02:38.1]}
11... d5 {[%clk 0:02:54.9]} 12. Ba2 {[%clk 0:02:36.2]} 12... b5 {[%clk
0:02:53.7]} 13. f5 {[%clk 0:02:29.1]} 13... b4 {[%clk 0:02:52.8]} 14. Ne2 {[%clk
0:02:27.1]} 14... dxe4 {[%clk 0:02:49.7]} 15. dxe4 {[%clk 0:02:24.4]} 15... exf5
{[%clk 0:02:49.6]} 16. Be3 {[%clk 0:02:15]} 16... fxe4 {[%clk 0:02:37.7]} 17.
Nxd4 {[%clk 0:02:13.1]} 17... cxd4 {[%clk 0:02:37.6]} 18. Bxd4 {[%clk
0:02:12.5]} 18... Qd6 {[%clk 0:02:35.2]} 19. c3 {[%clk 0:02:04.1]} 19... bxc3
{[%clk 0:02:34.6]} 20. bxc3 {[%clk 0:02:04.6]} 20... Ng6 {[%clk 0:02:31.7]} 21.
Qe2 {[%clk 0:02:02]} 21... Be7 {[%clk 0:02:28.5]} 22. Qxe4 {[%clk 0:02:00]}
22... Rd8 {[%clk 0:02:27.1]} 23. Rae1 {[%clk 0:01:56.1]} 23... Kf8 {[%clk
0:02:24.9]} 24. Kh1 {[%clk 0:01:52.4]} 24... Qa3 {[%clk 0:02:17.4]} 25. Qe6
{[%clk 0:01:51.4]} 25... Ke8 {[%clk 0:02:10.8]} 26. Qf7+ {[%clk 0:01:46.5]}
26... Kd7 {[%clk 0:02:10.7]} 27. Be6+ {[%clk 0:01:42.3]} 27... Kc7 {[%clk
0:02:10.4]} 28. Qxg7 {[%clk 0:01:42.4]} 28... Qxa4 {[%clk 0:02:04.6]} 29. Bxf6
{[%clk 0:01:40.3]} 29... Rhe8 {[%clk 0:01:59.2]} 30. Bf5 {[%clk 0:01:39.1]}
30... Qa3 {[%clk 0:01:51.8]} 31. Bxg6 {[%clk 0:01:37.4]} 31... Qc5 {[%clk
0:01:49.1]} 1-0

[Event "Early-Titled-Tuesday-Blitz-March-19-2024"]
[Site "Chess.com"]
[Date "2024.03.19"]
[Round "4"]
[White "Sattarov_Bobur"]
[Black "m_ezat"]
[Result "1-0"]
[WhiteElo "2828"]
[BlackElo "2596"]
[TimeControl "180+1"]
[EndTime "8:36:40 PDT"]
[Termination "Sattarov_Bobur won on time"]

1. e4 {[%clk 0:03:00.9]} 1... e5 {[%clk 0:02:33.5]} 2. Nf3 {[%clk 0:03:00.3]}
2... Nc6 {[%clk 0:02:33.4]} 3. Bc4 {[%clk 0:03:00.8]} 3... Nf6 {[%clk
0:02:32.8]} 4. Nc3 {[%clk 0:03:00.7]} 4... h6 {[%clk 0:02:33.4]} 5. d4 {[%clk
0:02:56.1]} 5... exd4 {[%clk 0:02:31]} 6. Nxd4 {[%clk 0:02:55.8]} 6... d6 {[%clk
0:02:29.4]} 7. O-O {[%clk 0:02:53.8]} 7... Be7 {[%clk 0:02:25.1]} 8. b3 {[%clk
0:02:53.3]} 8... Nd7 {[%clk 0:02:17.6]} 9. Bb2 {[%clk 0:02:51.8]} 9... Bf6
{[%clk 0:02:07.9]} 10. Nd5 {[%clk 0:02:35.7]} 10... Nxd4 {[%clk 0:01:33.3]} 11.
Nxf6+ {[%clk 0:02:31.2]} 1-0

[Event "Early-Titled-Tuesday-Blitz-March-19-2024"]
[Site "Chess.com"]
[Date "2024.03.19"]
[Round "4"]
[White "Hope_6"]
[Black "pirulillo"]
[Result "1-0"]
[WhiteElo "2711"]
[BlackElo "2366"]
[TimeControl "180+1"]
[EndTime "8:36:41 PDT"]
[Termination "Hope_6 won by resignation"]

1. e4 {[%clk 0:02:59.5]} 1... c5 {[%clk 0:02:59.5]} 2. Nf3 {[%clk 0:02:59]} 2...
e6 {[%clk 0:02:59.3]} 3. d4 {[%clk 0:02:59.2]} 3... cxd4 {[%clk 0:03:00.2]} 4.
Nxd4 {[%clk 0:03:00]} 4... Nf6 {[%clk 0:03:00.7]} 5. Nc3 {[%clk 0:03:00.2]} 5...
Nc6 {[%clk 0:03:01.3]} 6. Ndb5 {[%clk 0:02:58.5]} 6... d6 {[%clk 0:03:01.2]} 7.
Bf4 {[%clk 0:02:57.9]} 7... e5 {[%clk 0:03:01.7]} 8. Bg5 {[%clk 0:02:58.5]} 8...
a6 {[%clk 0:03:02.2]} 9. Na3 {[%clk 0:02:59]} 9... b5 {[%clk 0:03:02.4]} 10. Nd5
{[%clk 0:02:59.6]} 10... Be7 {[%clk 0:03:02.3]} 11. Bxf6 {[%clk 0:02:59.7]}
11... Bxf6 {[%clk 0:03:03.2]} 12. c3 {[%clk 0:02:59.4]} 12... O-O {[%clk
0:03:02.4]} 13. Nc2 {[%clk 0:02:58.2]} 13... Bg5 {[%clk 0:03:03.1]} 14. a4
{[%clk 0:02:55.7]} 14... bxa4 {[%clk 0:03:03]} 15. h4 {[%clk 0:02:55.3]} 15...
Bh6 {[%clk 0:02:59.7]} 16. Rxa4 {[%clk 0:02:54.7]} 16... a5 {[%clk 0:02:58.8]}
17. Bc4 {[%clk 0:02:49.3]} 17... Rb8 {[%clk 0:02:57.9]} 18. b3 {[%clk 0:02:47]}
18... g6 {[%clk 0:02:56.9]} 19. g3 {[%clk 0:02:42.4]} 19... Kg7 {[%clk
0:02:56.5]} 20. O-O {[%clk 0:02:28.3]} 20... f5 {[%clk 0:02:53]} 21. exf5 {[%clk
0:02:27.7]} 21... gxf5 {[%clk 0:02:50.7]} 22. f4 {[%clk 0:02:26.2]} 22... Kh8
{[%clk 0:02:46.1]} 23. Kh2 {[%clk 0:02:13.2]} 23... Bxf4 {[%clk 0:02:30]} 24.
Nxf4 {[%clk 0:02:06.3]} 24... exf4 {[%clk 0:02:29.6]} 25. Rxf4 {[%clk
0:02:07.2]} 25... Ne5 {[%clk 0:02:23.9]} 26. Ne3 {[%clk 0:01:56.7]} 26... Rb7
{[%clk 0:02:04.5]} 27. Be2 {[%clk 0:01:39.8]} 27... Rxb3 {[%clk 0:01:51.9]} 28.
Qxb3 {[%clk 0:01:28.8]} 1-0

[Event "Early-Titled-Tuesday-Blitz-March-19-2024"]
[Site "Chess.com"]
[Date "2024.03.19"]
[Round "4"]
[White "diamonds13"]
[Black "Rutricks"]
[Result "0-1"]
[WhiteElo "2346"]
[BlackElo "2710"]
[TimeControl "180+1"]
[EndTime "8:36:53 PDT"]
[Termination "Rutricks won by resignation"]

1. d4 {[%clk 0:03:00.9]} 1... g6 {[%clk 0:02:55.4]} 2. e4 {[%clk 0:02:59.9]}
2... Bg7 {[%clk 0:02:54.2]} 3. c3 {[%clk 0:02:58.6]} 3... c6 {[%clk 0:02:54.5]}
4. Bd3 {[%clk 0:02:58.9]} 4... d5 {[%clk 0:02:55.4]} 5. e5 {[%clk 0:02:58.7]}
5... f6 {[%clk 0:02:55.2]} 6. f4 {[%clk 0:02:58]} 6... Nh6 {[%clk 0:02:55.7]} 7.
h3 {[%clk 0:02:56.3]} 7... O-O {[%clk 0:02:56.1]} 8. Nf3 {[%clk 0:02:55]} 8...
fxe5 {[%clk 0:02:55.4]} 9. fxe5 {[%clk 0:02:52.8]} 9... c5 {[%clk 0:02:55.5]}
10. Bg5 {[%clk 0:02:51.7]} 10... Nc6 {[%clk 0:02:53.8]} 11. Nbd2 {[%clk
0:02:45]} 11... a5 {[%clk 0:02:48.6]} 12. Qe2 {[%clk 0:02:44.7]} 12... cxd4
{[%clk 0:02:46.7]} 13. cxd4 {[%clk 0:02:44.3]} 13... Qb6 {[%clk 0:02:47.4]} 14.
Nb3 {[%clk 0:02:38.9]} 14... a4 {[%clk 0:02:45.8]} 15. Nc5 {[%clk 0:02:38.7]}
15... Nxd4 {[%clk 0:02:45.9]} 16. Nxd4 {[%clk 0:02:34.2]} 16... Qxc5 {[%clk
0:02:46.5]} 17. Nf3 {[%clk 0:02:30.3]} 17... Nf5 {[%clk 0:02:41.9]} 18. Rc1
{[%clk 0:02:25.4]} 18... Qb6 {[%clk 0:02:28.1]} 19. Bxf5 {[%clk 0:02:21.7]}
19... Bxf5 {[%clk 0:02:29]} 20. Be3 {[%clk 0:02:21.6]} 20... Qb4+ {[%clk
0:02:20.6]} 21. Qd2 {[%clk 0:02:16.9]} 21... Qb5 {[%clk 0:02:17.9]} 22. Nd4
{[%clk 0:02:15.2]} 22... Qa6 {[%clk 0:02:18]} 23. e6 {[%clk 0:02:11.9]} 23...
Be4 {[%clk 0:02:16.5]} 24. Qe2 {[%clk 0:01:35.2]} 24... Qd6 {[%clk 0:02:01.8]}
25. Qg4 {[%clk 0:01:14.5]} 25... Qb4+ {[%clk 0:01:59.4]} 26. Rc3 {[%clk
0:01:04.2]} 26... Bxd4 {[%clk 0:01:58.2]} 0-1

[Event "Early-Titled-Tuesday-Blitz-March-19-2024"]
[Site "Chess.com"]
[Date "2024.03.19"]
[Round "4"]
[White "mitrabhaa"]
[Black "VitaliyBernadskiy"]
[Result "0-1"]
[WhiteElo "3068"]
[BlackElo "2881"]
[TimeControl "180+1"]
[EndTime "8:37:00 PDT"]
[Termination "VitaliyBernadskiy won by resignation"]

1. Nf3 {[%clk 0:02:59.7]} 1... d5 {[%clk 0:03:00.1]} 2. c4 {[%clk 0:02:59.6]}
2... c6 {[%clk 0:02:59.3]} 3. cxd5 {[%clk 0:02:59.4]} 3... cxd5 {[%clk
0:02:59.4]} 4. d4 {[%clk 0:03:00.3]} 4... Nc6 {[%clk 0:02:59.7]} 5. Nc3 {[%clk
0:03:00.9]} 5... Nf6 {[%clk 0:03:00.2]} 6. Bf4 {[%clk 0:03:00.9]} 6... Bf5
{[%clk 0:03:00.3]} 7. Rc1 {[%clk 0:03:01.1]} 7... e6 {[%clk 0:02:59.6]} 8. e3
{[%clk 0:03:01.5]} 8... Bd6 {[%clk 0:02:55.7]} 9. Bg5 {[%clk 0:03:00.3]} 9...
O-O {[%clk 0:02:53.8]} 10. Be2 {[%clk 0:03:00.4]} 10... Rc8 {[%clk 0:02:47.5]}
11. O-O {[%clk 0:02:55.7]} 11... h6 {[%clk 0:02:46.9]} 12. Bh4 {[%clk
0:02:55.6]} 12... Be7 {[%clk 0:02:46.6]} 13. Na4 {[%clk 0:02:48.6]} 13... Ne4
{[%clk 0:02:35.1]} 14. Bxe7 {[%clk 0:02:48.1]} 14... Qxe7 {[%clk 0:02:36]} 15.
Nd2 {[%clk 0:02:43.1]} 15... Qg5 {[%clk 0:02:16.6]} 16. Bf3 {[%clk 0:02:29.7]}
16... Nxd4 {[%clk 0:01:50.3]} 17. Rxc8 {[%clk 0:02:27.8]} 17... Rxc8 {[%clk
0:01:49.4]} 18. Bxe4 {[%clk 0:01:32.6]} 18... Rc1 {[%clk 0:01:48.1]} 19. f4
{[%clk 0:01:31.6]} 19... Rxd1 {[%clk 0:01:36.4]} 20. fxg5 {[%clk 0:01:31.9]}
20... Rxd2 {[%clk 0:01:28.5]} 21. Bxf5 {[%clk 0:01:31.7]} 21... Nxf5 {[%clk
0:01:26.5]} 22. gxh6 {[%clk 0:01:31.7]} 22... Nxe3 {[%clk 0:01:18.4]} 23. h7+
{[%clk 0:01:31.7]} 23... Kxh7 {[%clk 0:01:17.1]} 24. Rxf7 {[%clk 0:01:31.4]}
24... Rd1+ {[%clk 0:01:15.3]} 0-1